[Event "GCT 11th Sinquefield Cup 2024"]
[Site "Saint Louis"]
[Date "2024.08.19"]
[Round "1.2"]
[White "Praggnanandhaa R"]
[Black "Abdusattorov, Nodirbek"]
[Result "1/2-1/2"]
[ECO "C42"]
[WhiteElo "2749"]
[BlackElo "2762"]
[Annotator "TA"]
[PlyCount "71"]
[EventDate "2024.08.09"]
[EventType "tourn"]
[EventCountry "USA"]
[SourceTitle "playchess.com"]
[Source "ChessBase"]
[SourceQuality "1"]
[TimeControl "40/5400+30:1800+30"]

{[%evp 11,71,13,36,34,29,23,12,20,19,15,35,21,20,22,33,35,39,42,53,43,44,39,35,41,33,42,32,30,42,34,44,33,39,33,28,37,30,31,31,30,31,19,31,18,17,9,5,0,0,0,0,0,0,0,0,0,0,0,0,0,0,0]} 1. e4 {[%emt 0:00:00]} e5 {[%emt 0:00:00]} 2. Nf3 {[%emt 0:00:00]} Nf6 {[%emt 0:00:00]} 3. Nxe5 {[%emt 0:00:00]} d6 {[%emt 0:00:00]} 4. Nf3 {[%emt 0:00:00]} Nxe4 {[%emt 0:00:00]} 5. Nc3 {[%emt 0:00:00]} Nxc3 {[%emt 0:00:00]} 6. dxc3 {[%emt 0:00:00]} Nc6 {[%emt 0:00:00][%cal Bb8c6,Bc6e5,Be5f3][%mdl 32]} 7. Be3 {[%emt 0:00:00]} Be7 {[%emt 0:00:00]} 8. Qd3 {[%emt 0:00:00]} Be6 {[%emt 0:00:00]} 9. O-O-O {[%emt 0:00:00]} a6 {[%emt 0:00:00]} 10. Kb1 {[%emt 0:00:00]} O-O {[%emt 0:00:00]} 11. h3 {[%emt 0:00:00][%cal Bh2h3,Bh3h4,Bh4h5][%mdl 32]} Ne5 {[%emt 0:03:33]} 12. Qe4 {[%emt 0:04:32][%csl LRb7,LRe5]} Nxf3 {[%emt 0:02:13]} 13. Bd3 {[%emt 0:03:06][%csl Gd3][%cal Re4h7]} ({But not} 13. gxf3 d5 14. Qd3 b5 $11) 13... g6 {[%emt 0:00:01]} 14. Qxf3 {[%emt 0:00:12]} c6 {[%emt 0:00:07] [#]} 15. h4 $1 {[%emt 0:09:46]} Qa5 $1 {[%emt 0:03:46]} 16. a3 {[%emt 0:00:56]} Qd5 {[%emt 0:22:48]} 17. h5 {[%emt 0:06:09]} Qxf3 {[%emt 0:04:12]} (17... Qa2+ 18. Kc1 g5 (18... Qa1+ 19. Kd2 $18) 19. Bd4 $16) 18. gxf3 {[%emt 0:00:12]} Bf6 {[%emt 0:00:29]} 19. f4 {[%emt 0:02:35]} Rfe8 {[%emt 0:09:03][%cal Bf8e8,Be8e7,Be7g7][%mdl 32]} 20. hxg6 {[%emt 0:10:02]} fxg6 {[%emt 0:00:12] [#]} 21. f5 $1 {[%emt 0:02:11]} gxf5 {[%emt 0:00:32]} 22. Rh5 {[%emt 0:05:20]} Re7 {[%emt 0:05:55]} 23. Bxf5 {[%emt 0:02:15]} Bxf5 {[%emt 0:01:03]} 24. Rxf5 {[%emt 0:00:08]} Be5 {[%emt 0:00:25]} 25. c4 {[%emt 0:09:36]} Rae8 {[%emt 0:03:17]} 26. Rh1 {[%emt 0:04:27]} Rg7 {[%emt 0:04:10]} 27. Rfh5 {[%emt 0:03:43]} Ree7 {[%emt 0:01:20] The position is equal.} 28. Ka2 {[%emt 0:09:21]} Rg4 {[%emt 0:00:34]} 29. Kb3 {[%emt 0:02:25]} Bf4 {[%emt 0:04:25]} 30. Bxf4 {[%emt 0:00:54]} Rxf4 $11 {[%emt 0:00:10][%mdl 4096] Endgame. KRR-KRR} 31. R1h2 {[%emt 0:00:14]} Ref7 {[%emt 0:02:00]} 32. Rg5+ {[%emt 0:02:45]} Kf8 {[%emt 0:00:15]} 33. Rgh5 {[%emt 0:00:10]} Kg8 {[%emt 0:00:06]} 34. Rg5+ {[%emt 0:00:03]} Kf8 {[%emt 0:00:04]} 35. Rgh5 {[%emt 0:00:04]} Kg8 {[%emt 0:00:05]} 36. Rg5+ {[%emt 0:00:26] Weighted Error Value: White=0.02 (flawless) /Black=0.03 (flawless) .  OK:         	White=17    	Black=13     Strong:       	---       	Black=1} 1/2-1/2

[Event "GCT 11th Sinquefield Cup 2024"]
[Site "Saint Louis"]
[Date "2024.08.19"]
[Round "1.3"]
[White "Nepomniachtchi, Ian"]
[Black "Vachier-Lagrave, Maxime"]
[Result "1/2-1/2"]
[ECO "C56"]
[WhiteElo "2767"]
[BlackElo "2721"]
[Annotator "TA"]
[PlyCount "76"]
[EventDate "2024.08.09"]
[EventType "tourn"]
[EventCountry "USA"]
[SourceTitle "playchess.com"]
[Source "ChessBase"]
[SourceQuality "1"]
[TimeControl "40/5400+30:1800+30"]

{[%evp 23,76,-21,-10,-1,16,0,0,0,0,0,0,0,0,0,0,0,0,0,0,0,0,0,0,9,6,16,0,-27,-14,0,0,0,0,0,0,0,0,0,0,0,0,0,0,0,0,0,0,0,0,0,0,0,0,0,0]} 1. e4 {[%emt 0:00:00]} e5 {[%emt 0:00:00]} 2. Nf3 {[%emt 0:00:00]} Nc6 {[%emt 0:00:00]} 3. Bc4 {[%emt 0:00:00]} Nf6 {[%emt 0:00:00]} 4. d4 {[%emt 0:00:00]} exd4 {[%emt 0:00:00]} 5. e5 {[%emt 0:00:00]} d5 {[%emt 0:00:00]} 6. Bb5 {[%emt 0:00:00]} Ne4 {[%emt 0:00:00]} 7. Nxd4 {[%emt 0:00:00]} Bd7 {[%emt 0:00:00]} 8. Bxc6 {[%emt 0:00:00]} bxc6 {[%emt 0:00:00]} 9. O-O {[%emt 0:00:00]} Be7 {[%emt 0:00:00]} 10. f3 {[%emt 0:00:00][%cal Bf2f3,Bf3f4,Bf4f5,Bf5e6][%mdl 32]} Nc5 {[%emt 0:00:00]} 11. f4 {[%emt 0:00:00]} O-O {[%emt 0:00:00]} 12. f5 {[%emt 0:00:00]} Ne4 {[%emt 0:00:00]} 13. Nc3 {[%emt 0:05:19] aiming for Nxe4.} Re8 {[%emt 0:00:00]} 14. Nxe4 {[%emt 0:24:14]} dxe4 {[%emt 0:00:00]} 15. e6 {[%emt 0:00:18]} fxe6 {[%emt 0:00:00]} 16. fxe6 {[%emt 0:00:06]} Bc8 {[%emt 0:00:00]} 17. Be3 {[%emt 0:00:30][%cal Od1h5] [#] Qh5! is the strong threat.} Bf6 {[%emt 0:00:00]} 18. Nxc6 {[%emt 0:01:18]} Qxd1 {[%emt 0:00:00]} 19. Raxd1 {[%emt 0:00:08][%cal Od1d7]} Rxe6 {[%emt 0:06:03]} 20. Nd4 {[%emt 0:17:10]} Rd6 {[%emt 0:02:16]} 21. Nb5 {[%emt 0:02:05][%csl LRa7,LRc7,LRd6]} Rc6 {[%emt 0:08:42]} 22. c3 {[%emt 0:08:20]} Bg4 {[%emt 0:04:38]} 23. Rd2 {[%emt 0:00:59][%cal Of1f4]} Rb8 {[%emt 0:05:41]} 24. h3 {[%emt 0:02:37]} Bh5 {[%emt 0:06:45] This pair of bishops is nice.} ({Don't blunder} 24... Bxh3 $2 25. Nxa7 Ra6 26. gxh3 $18) 25. Nxa7 {[%emt 0:06:21]} Ra6 {[%emt 0:00:23]} 26. a4 {[%emt 0:00:05] The position is equal.} Be8 {[%emt 0:02:37]} 27. Nb5 $1 {[%emt 0:01:33]} Bxb5 {[%emt 0:00:46]} 28. axb5 {[%emt 0:00:02]} Rxb5 {[%emt 0:00:08]} 29. g3 {[%emt 0:07:29]} h5 {[%emt 0:04:07]} 30. Re2 {[%emt 0:00:21]} Kh7 {[%emt 0:09:01]} 31. Bc1 {[%emt 0:01:53]} Re6 {[%emt 0:04:18]} 32. Bf4 {[%emt 0:03:41]} c6 {[%emt 0:01:23]} 33. Rfe1 {[%emt 0:00:25]} Kg6 {[%emt 0:03:23]} 34. Kg2 {[%emt 0:01:01]} Kf5 {[%emt 0:00:48]} 35. Rf1 {[%emt 0:00:12]} Kg6 {[%emt 0:00:06]} 36. Rfe1 {[%emt 0:00:16]} Kf5 {[%emt 0:00:05]} 37. Rf1 {[%emt 0:01:43]} Kg6 {[%emt 0:00:07]} 38. Rfe1 {[%emt 0:00:31]} Kf5 {[%emt 0:00:14] A balanced but interesting game.   Weighted Error Value: White=0.01 (flawless) /Black=0.01 (flawless) .  Inaccurate:     	White=1     	---        OK:         	White=7     	Black=17     Best:        	---       	Black=1      Strong:       	White=1     	---} 1/2-1/2

[Event "GCT 11th Sinquefield Cup 2024"]
[Site "Saint Louis"]
[Date "2024.08.19"]
[Round "1.4"]
[White "Ding, Liren"]
[Black "Gukesh D"]
[Result "1/2-1/2"]
[ECO "C54"]
[WhiteElo "2745"]
[BlackElo "2766"]
[Annotator "TA"]
[PlyCount "55"]
[EventDate "2024.08.09"]
[EventType "tourn"]
[EventCountry "USA"]
[SourceTitle "playchess.com"]
[Source "ChessBase"]
[SourceQuality "1"]
[TimeControl "40/5400+30:1800+30"]

{[%evp 10,55,18,16,21,8,10,10,18,23,13,0,14,0,8,0,1,6,21,22,17,11,18,10,31,27,28,25,46,62,50,0,0,0,0,0,0,0,0,0,0,0,0,0,0,0,0,0]} 1. e4 {[%emt 0:00:00]} e5 {[%emt 0:00:00]} 2. Nf3 {[%emt 0:00:00]} Nc6 {[%emt 0:00:00]} 3. Bc4 {[%emt 0:00:00]} Bc5 {[%emt 0:00:00]} 4. O-O {[%emt 0:00:00]} Nf6 {[%emt 0:00:00]} 5. d3 {[%emt 0:00:00]} d6 {[%emt 0:00:00]} 6. c3 {[%emt 0:00:00]} a5 {[%emt 0:00:00]} 7. Re1 {[%emt 0:00:00]} O-O {[%emt 0:00:00]} 8. h3 {[%emt 0:00:00]} Be6 {[%emt 0:00:00]} 9. Bb5 {[%emt 0:00:00]} Ba7 {[%emt 0:00:00]} 10. Be3 {[%emt 0:00:00]} Bxe3 {[%emt 0:00:00]} 11. Rxe3 {[%emt 0:00:00]} Ne7 {[%emt 0:00:00]} 12. d4 {[%emt 0:00:00]} Ng6 {[%emt 0:00:00]} 13. Bf1 {[%emt 0:00:00]} d5 {[%emt 0:21:04]} 14. Nbd2 {[%emt 0:16:19]} Nxe4 {[%emt 0:08:20]} 15. Nxe5 {[%emt 0:14:25]} Nxe5 {[%emt 0:01:40]} 16. dxe5 {[%emt 0:00:13]} Nxd2 {[%emt 0:03:05]} 17. Qxd2 {[%emt 0:00:04]} c5 {[%emt 0:08:59][%cal Bc7c5,Bc5c4][%mdl 32]} 18. Rg3 {[%emt 0:05:55]} (18. f4 {simplifies} d4 19. cxd4 Qxd4 20. Qxd4 cxd4 21. Ra3) 18... d4 {[%emt 0:23:15]} 19. Qh6 {[%emt 0:28:13]} g6 {[%emt 0:00:07]} 20. Bd3 {[%emt 0:00:03]} (20. Re1 $14 Qd5 21. Rf3) 20... c4 $11 {[%emt 0:07:51] The position is equal.} 21. Be4 {[%emt 0:10:10]} d3 {[%emt 0:04:25]} 22. Bxg6 {[%emt 0:05:07]} fxg6 {[%emt 0:00:18]} 23. Rxg6+ {[%emt 0:00:03]} hxg6 {[%emt 0:00:06]} 24. Qxg6+ {[%emt 0:00:01]} Kh8 {[%emt 0:00:06]} 25. Qh6+ {[%emt 0:00:02]} Kg8 {[%emt 0:00:06]} 26. Qg6+ {[%emt 0:00:03]} Kh8 {[%emt 0:00:04]} 27. Qh6+ {[%emt 0:00:03]} Kg8 {[%emt 0:00:05]} 28. Qg6+ {[%emt 0:00:13] Weighted Error Value: White=0.07 (flawless) /Black=0.05 (flawless) .  Mistake:       	White=1     	---        OK:         	White=9     	Black=7      Best:        	White=2     	---} 1/2-1/2

[Event "GCT 11th Sinquefield Cup 2024"]
[Site "Saint Louis"]
[Date "2024.08.19"]
[Round "1.5"]
[White "So, Wesley"]
[Black "Giri, Anish"]
[Result "1/2-1/2"]
[ECO "A14"]
[WhiteElo "2751"]
[BlackElo "2746"]
[Annotator "TA"]
[PlyCount "82"]
[EventDate "2024.08.09"]
[EventType "tourn"]
[EventCountry "USA"]
[SourceTitle "playchess.com"]
[Source "ChessBase"]
[SourceQuality "1"]
[TimeControl "40/5400+30:1800+30"]

{[%evp 20,82,0,0,0,-10,-14,-26,-18,-6,-31,-23,-17,-25,3,4,7,0,19,0,0,0,0,5,27,13,27,13,14,18,30,6,4,3,8,0,0,0,0,4,0,0,35,35,36,33,37,37,36,12,18,0,0,0,0,0,36,22,55,0,14,0,53,0,14]} 1. c4 {[%emt 0:00:00]} Nf6 {[%emt 0:00:00]} 2. Nf3 {[%emt 0:00:00]} e6 {[%emt 0:00:00]} 3. g3 {[%emt 0:00:00]} d5 {[%emt 0:00:00]} 4. Bg2 {[%emt 0:00:00]} Be7 {[%emt 0:00:00]} 5. O-O {[%emt 0:00:00]} O-O {[%emt 0:00:00]} 6. b3 {[%emt 0:00:00]} c5 {[%emt 0:00:00]} 7. Bb2 {[%emt 0:00:00]} Nc6 {[%emt 0:00:00]} 8. e3 {[%emt 0:00:00]} d4 {[%emt 0:00:00]} 9. exd4 {[%emt 0:00:00]} cxd4 {[%emt 0:00:00]} 10. Re1 {[%emt 0:00:00]} Re8 {[%emt 0:00:00]} 11. d3 {[%emt 0:00:00]} a5 {[%emt 0:00:00]} 12. Ne5 {[%emt 0:00:00]} Nxe5 {[%emt 0:02:24]} 13. Rxe5 {[%emt 0:00:00]} Nd7 {[%emt 0:01:20] Black has an edge.} 14. Re1 {[%emt 0:00:37]} e5 {[%emt 0:16:47]} 15. Na3 {[%emt 0:12:53]} Bb4 {[%emt 0:01:17]} 16. Rf1 {[%emt 0:03:02]} Nc5 {[%emt 0:22:09] [#] ...Bf5 is the strong threat.} 17. Nb5 $1 {[%emt 0:00:32]} Bf5 {[%emt 0:00:12]} 18. a3 {[%emt 0:00:42]} Bc3 {[%emt 0:01:44]} 19. Nxc3 {[%emt 0:00:28]} (19. Bxc3 {simplifies} dxc3 20. Nxc3 Bxd3 21. Re1) 19... dxc3 {[%emt 0:00:06]} 20. Bxc3 {[%emt 0:00:03]} Qxd3 {[%emt 0:01:03]} 21. Rc1 {[%emt 0:00:26]} (21. Qxd3 {simplifies} Bxd3 22. Rfe1 Nxb3 23. Bxb7 Nxa1 24. Bxa8 Rxa8 25. Rxa1 f6 26. c5) 21... a4 {[%emt 0:18:21]} 22. b4 {[%emt 0:13:34]} Nb3 {[%emt 0:00:40]} 23. Qxd3 {[%emt 0:00:05]} Bxd3 {[%emt 0:00:03]} 24. Bxb7 {[%emt 0:00:06][%cal Oc1d1] [#] Hoping for Rcd1! A strong pair of Bishops.} Rab8 {[%emt 0:09:11]} 25. Bc6 {[%emt 0:03:25]} Bxc4 $1 {[%emt 0:06:19]} 26. Bxe8 {[%emt 0:00:45]} ({Much worse is} 26. Bxe5 Nxc1 27. Rxc1 Rxe5 $17) 26... Rxe8 {[%emt 0:00:29]} 27. Rfe1 {[%emt 0:14:09]} Nxc1 {[%emt 0:00:04]} 28. Rxc1 $11 {[%emt 0:00:02][%cal Oc3e5][%mdl 4096] Endgame. KRB-KRB} Bb5 {[%emt 0:01:32]} 29. Bd2 {[%emt 0:02:14]} f6 {[%emt 0:00:26]} 30. Rc5 {[%emt 0:00:11]} Rb8 {[%emt 0:00:44]} 31. f4 {[%emt 0:00:09]} exf4 {[%emt 0:00:42]} 32. Bxf4 {[%emt 0:00:04]} Rb7 {[%emt 0:00:02]} 33. Kf2 {[%emt 0:00:10]} Kf7 {[%emt 0:00:25]} 34. h4 {[%emt 0:00:04]} Ke6 {[%emt 0:00:24]} 35. g4 {[%emt 0:01:16]} h6 {[%emt 0:00:18]} 36. g5 {[%emt 0:00:10]} hxg5 {[%emt 0:01:02]} 37. hxg5 {[%emt 0:00:02]} Bd7 {[%emt 0:01:07]} 38. Ke3 {[%emt 0:00:18]} Bb5 {[%emt 0:01:02]} 39. Kf2 {[%emt 0:00:06]} Bd7 {[%emt 0:00:04]} 40. Ke3 {[%emt 0:00:02]} Bb5 {[%emt 0:00:02]} 41. Kf2 {[%emt 0:00:05]} (41. gxf6 $5 gxf6 42. Bc7 $11) 41... Bd7 {Weighted Error Value: White=0.09 (flawless) /Black=0.08 (flawless) .  Inaccurate:     	White=2     	Black=4      OK:         	White=11    	Black=17     Best:        	White=3     	Black=1      Strong:       	White=1     	Black=1} 1/2-1/2

[Event "GCT 11th Sinquefield Cup 2024"]
[Site "Saint Louis"]
[Date "2024.08.20"]
[Round "2.1"]
[White "Giri, Anish"]
[Black "Ding, Liren"]
[Result "1/2-1/2"]
[ECO "C54"]
[WhiteElo "2746"]
[BlackElo "2745"]
[Annotator "TA"]
[PlyCount "46"]
[EventDate "2024.08.09"]
[EventType "tourn"]
[EventCountry "USA"]
[SourceTitle "playchess.com"]
[Source "ChessBase"]
[SourceQuality "1"]
[TimeControl "40/5400+30:1800+30"]

{[%evp 11,46,22,29,19,29,25,27,0,0,0,0,0,0,0,4,0,19,0,0,0,0,0,0,0,0,0,0,0,0,0,0,0,0,0,0,0,0]} 1. e4 {[%emt 0:00:00]} e5 {[%emt 0:00:00]} 2. Nf3 {[%emt 0:00:00]} Nc6 {[%emt 0:00:00]} 3. Bc4 {[%emt 0:00:00]} Nf6 {[%emt 0:00:00]} 4. d3 {[%emt 0:00:00]} Bc5 {[%emt 0:00:00]} 5. O-O {[%emt 0:00:00]} d6 {[%emt 0:00:00]} 6. c3 {[%emt 0:00:00]} a6 {[%emt 0:00:00]} 7. Re1 {[%emt 0:00:00]} Ba7 {[%emt 0:00:00]} 8. Nbd2 {[%emt 0:00:00]} O-O {[%emt 0:00:00]} 9. Nf1 {[%emt 0:00:00] White has an edge.} Na5 {[%emt 0:00:00] The position is equal.} 10. Bb3 {[%emt 0:00:00]} Nxb3 {[%emt 0:00:00]} 11. axb3 {[%emt 0:00:00]} Ng4 {[%emt 0:00:00]} 12. d4 {[%emt 0:00:00]} exd4 {[%emt 0:00:00]} 13. Nxd4 {[%emt 0:00:00]} Re8 {[%emt 0:00:00]} 14. Bf4 {[%emt 0:15:17]} Qf6 {[%emt 0:00:00]} 15. Bg3 {[%emt 0:01:26]} h5 {[%emt 0:02:18] ...h4 would now be deadly.} 16. Nf3 {[%emt 0:02:39]} h4 {[%emt 0:03:49]} 17. Bxh4 {[%emt 0:00:06]} Qxh4 {[%emt 0:00:03]} 18. Nxh4 {[%emt 0:00:04]} Nxf2 {[%emt 0:00:03]} 19. Qf3 {[%emt 0:00:28]} Nh3+ $1 {[%emt 0:00:03]} (19... Nxe4+ $2 20. Kh1 $18) 20. Kh1 {[%emt 0:00:03]} Nf2+ {[%emt 0:00:03]} 21. Kg1 {[%emt 0:00:03]} Nh3+ $1 {[%emt 0:00:05]} (21... Nxe4+ $2 {is the wrong capture.} 22. Kh1 $18) 22. Kh1 {[%emt 0:00:01]} Nf2+ {[%emt 0:00:06]} 23. Kg1 {[%emt 0:00:03]} Nh3+ $1 {[%emt 0:01:58] A rather calm draw.   Weighted Error Value: White=0.06 (flawless) /Black=0.02 (flawless) .  OK:         	White=5     	Black=8      Best:        	White=2     	Black=1      Strong:       	---       	Black=3} (23... Nxe4+ $2 {loses.} 24. Ne3 Nd2 25. Qg3 $18) 1/2-1/2

[Event "GCT 11th Sinquefield Cup 2024"]
[Site "Saint Louis"]
[Date "2024.08.20"]
[Round "2.2"]
[White "Gukesh D"]
[Black "Nepomniachtchi, Ian"]
[Result "1/2-1/2"]
[ECO "E04"]
[WhiteElo "2766"]
[BlackElo "2767"]
[Annotator "TA"]
[PlyCount "119"]
[EventDate "2024.08.09"]
[EventType "tourn"]
[EventCountry "USA"]
[SourceTitle "playchess.com"]
[Source "ChessBase"]
[SourceQuality "1"]
[TimeControl "40/5400+30:1800+30"]

{[%evp 42,119,81,56,77,31,40,39,68,68,107,92,78,77,93,101,102,100,93,88,100,87,95,107,103,96,92,58,81,8,13,0,144,134,137,112,109,122,116,112,118,39,51,0,8,8,8,8,8,0,0,0,8,8,8,8,8,8,8,8,8,8,8,8,8,8,8,8,8,8,8,8,8,8,8,8,8,8,8,8]} 1. d4 {[%emt 0:00:00]} Nf6 {[%emt 0:00:00]} 2. c4 {[%emt 0:00:00]} e6 {[%emt 0:00:00]} 3. g3 {[%emt 0:00:00]} d5 {[%emt 0:00:00]} 4. Bg2 {[%emt 0:00:00]} dxc4 {[%emt 0:00:00]} 5. Nf3 {[%emt 0:00:00]} Nc6 {[%emt 0:00:00]} 6. Qa4 {[%emt 0:00:00]} Bb4+ {[%emt 0:00:00]} 7. Bd2 {[%emt 0:00:00]} Nd5 {[%emt 0:00:00]} 8. O-O {[%emt 0:00:00] E04: Open Catalan: 5 Nf3.} Bxd2 {[%emt 0:00:00]} 9. Nfxd2 {[%emt 0:00:00]} O-O {[%emt 0:00:00]} 10. e3 {[%emt 0:00:00]} e5 {[%emt 0:00:00]} 11. Qb5 {[%emt 0:00:00]} Nf6 $146 {[%emt 0:05:25]} ({Predecessor:} 11... Be6 12. Qxb7 Qd7 13. Qb5 exd4 14. exd4 Rab8 15. Qc5 Ndb4 16. Na3 Nxd4 17. Ndxc4 Nd3 18. Qxa7 Nxb2 {0-1 Duarte Napoles,F (2268)-Rodriguez Hernandez,L (2318) Camajuani Guerrilleritos-A 2018 (8)}) 12. dxe5 {[%emt 0:00:00]} a6 {[%emt 0:00:28]} 13. Qxc4 {[%emt 0:00:00]} Nxe5 {[%emt 0:00:05]} 14. Qc2 {[%emt 0:00:00]} c6 {[%emt 0:04:42]} 15. Nc3 {[%emt 0:00:00]} a5 {[%emt 0:02:02]} 16. Rad1 {[%emt 0:06:57]} Qe7 {[%emt 0:03:07]} 17. h3 {[%emt 0:09:54]} Be6 {[%emt 0:00:55]} 18. f4 {[%emt 0:13:11]} Nc4 {[%emt 0:00:28]} 19. Nxc4 {[%emt 0:00:06]} Bxc4 {[%emt 0:00:03]} 20. Rfe1 {[%emt 0:00:05]} b5 {[%emt 0:12:41]} 21. e4 {[%emt 0:19:39]} Rad8 {[%emt 0:07:47]} 22. b3 {[%emt 0:09:22]} Be6 {[%emt 0:01:12]} ({Not} 22... Bxb3 $2 23. Qxb3 (23. axb3 Qc5+ 24. Kh1 b4 $16) 23... a4 24. Qb2 $18) 23. Qf2 {[%emt 0:00:24]} (23. Rc1 $16) 23... Qb4 {[%emt 0:01:51]} 24. Qe3 {[%emt 0:01:15]} Rxd1 {[%emt 0:06:13]} 25. Rxd1 {[%emt 0:00:06]} Re8 {[%emt 0:00:06]} 26. g4 {[%emt 0:05:13]} h6 {[%emt 0:01:21]} 27. Qd4 {[%emt 0:12:48]} Qxd4+ {[%emt 0:05:37]} 28. Rxd4 {[%emt 0:00:11]} c5 {[%emt 0:00:01]} 29. Rd2 {[%emt 0:02:14]} c4 {[%emt 0:02:03]} 30. bxc4 {[%emt 0:03:20]} ({Much less strong is} 30. Nxb5 cxb3 31. axb3 Bxb3 $14) 30... Bxc4 {[%emt 0:00:26]} 31. e5 $1 {[%emt 0:00:13]} b4 {[%emt 0:01:23]} 32. Na4 {[%emt 0:03:56]} Bb5 {[%emt 0:00:14]} 33. Nc5 {[%emt 0:01:30]} Rc8 {[%emt 0:02:07]} 34. Nb7 {[%emt 0:00:57]} Nd7 {[%emt 0:00:04] [#]} 35. Kf2 {[%emt 0:05:26]} (35. Nd6 $1 $16 {[%cal Rd6c8]} Rc1+ 36. Kf2) 35... Rc3 $11 {[%emt 0:02:38]} ({Don't go for} 35... Rc4 $2 36. Nd6 Rxf4+ 37. Kg3 $18) 36. Nd6 {[%emt 0:03:52]} Bc6 {[%emt 0:01:37]} (36... Ba4 $11) 37. Bxc6 $16 {[%emt 0:00:20]} Rxc6 {[%emt 0:00:01]} 38. Nxf7 $1 {[%emt 0:00:46]} Nc5 {[%emt 0:00:10]} 39. Nd6 {[%emt 0:01:21]} a4 {[%emt 0:00:06]} 40. Ke3 {[%emt 0:01:26]} b3 {[%emt 0:00:08] [#]} 41. axb3 {[%emt 0:31:14]} ({White should play} 41. Nc4 $1 $16) 41... axb3 $14 {[%emt 0:30:10]} 42. Ne4 {[%emt 0:04:44]} (42. Nc4 $14) 42... Na4 {[%emt 0:05:39]} 43. Rd8+ {[%emt 0:00:04]} Kf7 {[%emt 0:00:07]} 44. Rb8 {[%emt 0:01:20]} b2 {[%emt 0:00:28]} 45. Rb7+ {[%emt 0:00:15]} Kf8 {[%emt 0:00:32]} 46. Nd2 {[%emt 0:00:40]} Rb6 {[%emt 0:01:34]} 47. Rxb6 {[%emt 0:00:25]} Nxb6 {[%emt 0:00:02]} 48. Kd4 {[%emt 0:00:14]} Ke7 {[%emt 0:00:55]} 49. f5 {[%emt 0:00:05]} Nd7 {[%emt 0:00:15]} 50. h4 {[%emt 0:00:32]} Ke8 {[%emt 0:01:03]} 51. g5 {[%emt 0:01:15]} hxg5 {[%emt 0:00:08]} 52. hxg5 {[%emt 0:00:02]} g6 {[%emt 0:00:48]} 53. fxg6 {[%emt 0:00:43]} Nf8 {[%emt 0:00:02]} 54. g7 {[%emt 0:00:22]} Ne6+ {[%emt 0:00:01]} 55. Kc3 {[%emt 0:00:06]} Kf7 {[%emt 0:00:02]} 56. Kxb2 {[%emt 0:00:05]} Nxg5 {[%emt 0:00:07]} 57. Kc3 {[%emt 0:00:27]} Kxg7 {[%emt 0:00:02]} 58. Kd4 {[%emt 0:00:04]} Nf7 {[%emt 0:00:06]} 59. Ne4 {[%emt 0:00:06]} Nxe5 {[%emt 0:00:04]} 60. Kxe5 {[%emt 0:00:02]} 1/2-1/2